fUSD/lending_fUSD_20251206
["ID","MTS","AMOUNT","RATE_DAILY","PERIOD"]
[396489246,1764999045440,-500.0,0.00017973,2]
[396489247,1764999045449,-160.1949285,0.00017973,2]
[396489248,1764999045458,-311.98554059,0.00017973,2]
[396489249,1764999045468,-500.0,0.00017973,2]
[396489250,1764999045476,-500.0,0.00017973,2]
[396489251,1764999045485,-500.0,0.00017973,2]
[396489252,1764999045495,-500.06751975,0.00017973,2]
[396489253,1764999045503,-500.0,0.00017973,2]
[396489254,1764999045513,-500.0,0.00017973,2]
[396489255,1764999045522,-500.0,0.00017973,2]
[396489256,1764999045535,-500.08341948,0.00017973,2]
[396489257,1764999045544,-500.0,0.00017973,2]
[396489258,1764999045553,-164.45914382,0.00017973,2]
[396489259,1764999045562,-500.0,0.00017973,2]
[396489260,1764999045572,-500.12019196,0.00017973,2]
[396489261,1764999045582,-343.90657031,0.00017973,2]
[396489262,1764999045592,-500.0,0.00017973,2]
[396489263,1764999045601,-500.0,0.00017973,2]
[396489264,1764999045611,-467.58168915,0.00017973,2]
[396489265,1764999045620,-166.53912604,0.00017973,2]
[396489266,1764999045640,-576.0,0.00017988,2]
[396489267,1764999045650,-500.0,0.00017988,2]
[396489268,1764999045663,-1250.77650122,0.0001799,2]
[396489269,1764999045674,-500.0,0.00017999,2]
[396489270,1764999045684,-500.0,0.00017999,2]
[396489271,1764999045694,-500.0,0.00017999,2]
[396489272,1764999045704,-500.0,0.00017999,2]
[396489273,1764999045714,-500.0,0.00017999,2]
[396489274,1764999045723,-500.0,0.00017999,2]
[396489275,1764999045733,-535.31386076,0.00017999,2]
[396489276,1764999045743,-300.0,0.00017999,2]
[396489277,1764999045753,-1858396.21588845,0.00018,2]
[396489278,1764999046241,-1256.38003316,0.00018,2]
[396489284,1764999047123,-1004.93874336,0.000161,2]
[396489285,1764999047240,-192.71020167,0.00016116,2]
[396489286,1764999047249,-426.49029739,0.00016303,2]
[396489287,1764999047258,-390.14075758,0.00017229,2]
[396489298,1764999117217,-2253.06002595,0.00015766,2]
[396489299,1764999120004,-4506.1200519,0.00015766,2]
[396489300,1764999123162,-987.7698962,0.00015766,2]
[396489301,1764999123192,-300.0,0.00015766,2]
[396489305,1764999314294,150.0,0.00015097,2]
[396489306,1764999324364,150.0,0.00015097,2]
[396489307,1764999370969,-1080.08,0.00024658,30]
[396489308,1764999371072,-193.52127997,0.00025,120]
[396489309,1764999371256,-200.0,0.000284,120]
[396489310,1764999371284,-1080.08,0.00029492,30]
[396489311,1764999371313,-3995.182564,0.000295,120]
[396489312,1764999371341,-218.41,0.0003,60]
[396489313,1764999371369,-1000.0,0.0003,120]
[396489314,1764999371395,-470.88880145,0.0003,120]
[396489315,1764999371422,-500.0,0.0003,120]
[396489316,1764999371449,-500.0,0.0003,120]
[396489317,1764999371476,-500.0,0.0003,120]
[396489318,1764999371501,-500.0,0.0003,120]
[396489319,1764999371527,-500.0,0.0003,120]
[396489320,1764999371552,-492.0,0.0003,120]
[396489321,1764999371578,-1595.20092841,0.0003,120]
[396489322,1764999371604,-480.30253659,0.0003,120]
[396489323,1764999371630,-200.0,0.00030137,31]
[396489324,1764999371656,-5110.09844,0.0003072,30]
[396489325,1764999371683,-399.24,0.000308,120]
[396489326,1764999371709,-394.43,0.000309,120]
[396489327,1764999371740,-1000.0,0.00031,120]
[396489328,1764999371767,-1000.0,0.00031,120]
[396489329,1764999371795,-300.0,0.000314,120]
[396489330,1764999371832,-300.0,0.00032,120]
[396489331,1764999371857,-545.72,0.00032,32]
[396489332,1764999371884,-600.0,0.00032,30]
[396489333,1764999371910,-1000.0,0.00032,120]
[396489334,1764999371935,-952.7905382,0.00032,120]
[396489335,1764999371962,-150.0,0.00032233,120]
[396489336,1764999371988,-209.0,0.0003286,30]
[396489337,1764999372017,-500.0,0.00032876,120]
[396489338,1764999372044,-150.0,0.00032877,30]
[396489339,1764999372068,-300.0,0.00032877,78]
[396489340,1764999372093,-150.0,0.00032877,90]
[396489341,1764999372119,-500.0,0.000329,30]
[396489342,1764999372146,-500.0,0.000329,30]
[396489343,1764999372172,-500.0,0.000329,30]
[396489344,1764999372197,-500.0,0.000329,30]
[396489345,1764999372222,-500.0,0.000329,30]
[396489346,1764999372247,-500.0,0.000329,30]
[396489347,1764999372273,-500.0,0.000329,30]
[396489348,1764999372299,-500.0,0.000329,30]
[396489349,1764999372325,-500.0,0.000329,30]
[396489350,1764999372350,-500.0,0.000329,30]
[396489351,1764999372378,-500.0,0.000329,30]
[396489352,1764999372407,-1000.0,0.00033,120]
[396489353,1764999372432,-480.30253659,0.00033,30]
[396489354,1764999372460,-480.30253659,0.00033,120]
[396489355,1764999372485,-100000.0,0.00033,120]
[396489356,1764999372510,-200.0,0.00033425,60]
[396489357,1764999372537,-500.0,0.00033698,120]
[396489358,1764999372561,-164.70249473,0.00033939,60]
[396489359,1764999372588,-300.0,0.00034,120]
[396489360,1764999372616,-1000.0,0.00034,120]
[396489361,1764999372642,-500.0,0.00034247,120]
[396489362,1764999372669,-500.0,0.00034247,120]
[396489363,1764999372693,-500.0,0.00034247,120]
[396489364,1764999372717,-500.0,0.00034247,120]
[396489365,1764999372741,-300.0,0.00034247,116]
[396489366,1764999372766,-1080.08,0.00034327,30]
[396489367,1764999372792,-500.0,0.0003452,120]
[396489368,1764999372821,-1444.0,0.00034849,120]
[396489369,1764999372849,-209.0,0.0003488,30]
[396489370,1764999372876,-10008.6556975,0.000349,30]
[396489371,1764999372903,-222.80057962,0.00034931,120]
[396489372,1764999372933,-50000.0,0.00035,35]
[396489373,1764999372958,-794.2202821,0.00035,120]
[396489374,1764999372983,-8436.38213527,0.00035,30]
[396489375,1764999373008,-1000.0,0.00035,120]
[396489376,1764999373032,-722.22,0.00035,30]
[396489377,1764999373055,-150.7072902,0.00035,30]
[396489378,1764999373080,-10113.61109634,0.00035,120]
[396489379,1764999373106,-160.0,0.00035,30]
[396489380,1764999373130,-1716.0,0.00035,120]
[396489381,1764999373155,-500.0,0.00035297,30]
[396489382,1764999373180,-500.0,0.00035342,120]
[396489383,1764999373207,-150.0,0.00035596,120]
[396489384,1764999373232,-300.0,0.00035616,52]
[396489385,1764999373260,-50000.0,0.00036,36]
[396489386,1764999373284,-153.78771342,0.00036,120]
[396489387,1764999373309,-30426.69475375,0.00036,30]
[396489388,1764999373334,-300.0,0.00036,120]
[396489389,1764999373359,-1000.0,0.00036,120]
[396489390,1764999373384,-257.0,0.00036,120]
[396489391,1764999373412,-589.91412054,0.00036164,120]
[396489392,1764999373440,-168.49,0.000368,30]
[396489393,1764999373469,-1000.0,0.000368,120]
[396489394,1764999373498,-1768.28373383,0.00036888,60]
[396489395,1764999373525,-209.0,0.0003689,30]
[396489396,1764999373763,-1024.77,0.00036986,30]
[396489397,1764999373793,-50000.0,0.00037,37]
[396489398,1764999373824,-1000.0,0.00037,120]
[396489399,1764999373853,-150.0,0.00037282,120]
[396489400,1764999373879,-500.0,0.00037297,30]
[396489401,1764999373905,-300.051413,0.00037896,87]
[396489402,1764999373930,-31698.89212917,0.000379,30]
[396489403,1764999373956,-593.15068916,0.00037976,30]
[396489404,1764999373981,-593.15068916,0.00037976,30]
[396489405,1764999374006,-593.15068916,0.00037976,30]
[396489406,1764999374031,-593.15068916,0.00037976,30]
[396489407,1764999374055,-790.86758562,0.00037976,30]
[396489408,1764999374080,-365.89089157,0.00037976,30]
[396489409,1764999374104,-593.15068916,0.00037976,30]
[396489410,1764999374128,-365.89089157,0.00037976,30]
[396489411,1764999374156,-593.15068916,0.00037976,30]
[396489412,1764999374184,-343.88943884,0.00037976,30]
[396489413,1764999374210,-593.15068916,0.00037976,30]
[396489414,1764999374239,-593.15068916,0.00037976,30]
[396489415,1764999374263,-593.15068916,0.00037976,30]
[396489416,1764999374291,-326.40722214,0.00037976,30]
[396489417,1764999374316,-368.9780652,0.00037976,30]
[396489418,1764999374341,-593.15068916,0.00037976,30]
[396489419,1764999374366,-365.89089157,0.00037976,30]
[396489420,1764999374391,-593.15068916,0.00037976,30]
[396489421,1764999374416,-365.89089157,0.00037976,30]
[396489422,1764999374440,-409.05357156,0.00037976,30]
[396489423,1764999374464,-302.20610644,0.00037976,30]
[396489424,1764999374490,-593.15068916,0.00037976,30]
[396489425,1764999374517,-593.15068916,0.00037976,30]
[396489426,1764999374544,-593.15068916,0.00037976,30]
[396489427,1764999374571,-593.15068916,0.00037976,30]
[396489428,1764999374598,-593.15068916,0.00037976,30]
[396489429,1764999374624,-593.15068916,0.00037976,30]
[396489430,1764999374650,-593.15068916,0.00037976,30]
[396489431,1764999374676,-593.15068916,0.00037976,30]
[396489432,1764999374701,-593.15068916,0.00037976,30]
[396489433,1764999374726,-593.15068916,0.00037976,30]
[396489434,1764999374751,-593.15068916,0.00037976,30]
[396489435,1764999374777,-593.15068916,0.00037976,30]
[396489436,1764999374805,-593.15068916,0.00037976,30]
[396489437,1764999374832,-593.15068916,0.00037976,30]
[396489438,1764999374858,-593.15068916,0.00037976,30]
[396489439,1764999374887,-593.15068916,0.00037976,30]
[396489440,1764999374914,-593.15068916,0.00037976,30]
[396489441,1764999374941,-593.15068916,0.00037976,30]
[396489442,1764999374966,-300.0,0.00037976,30]
[396489443,1764999374991,-593.15068916,0.00037976,30]
[396489444,1764999375016,-300.0,0.00037976,30]
[396489445,1764999375040,-593.15068916,0.00037976,30]
[396489446,1764999375066,-300.0,0.00037976,30]
[396489447,1764999375091,-153.16240149,0.00037999,120]
[396489448,1764999375119,-50000.0,0.00038,38]
[396489449,1764999375144,-494.16862879,0.00038,120]
[396489450,1764999375169,-360.0,0.00038,30]
[396489451,1764999375195,-1514.47877606,0.00038,120]
[396489452,1764999375224,-300.0,0.00038,120]
[396489453,1764999375253,-3261.95,0.00038,30]
[396489454,1764999375279,-264.70198379,0.00038,120]
[396489455,1764999375305,-51876.91853576,0.00038,60]
[396489456,1764999375329,-50000.0,0.00038,38]
[396489457,1764999375354,-1071.08000004,0.00038,120]
[396489458,1764999375379,-30000.0,0.00038,35]
[396489459,1764999375403,-178.43894,0.00038356,120]
[396489460,1764999375429,-500.0,0.000387,120]
[396489461,1764999375455,-500.0,0.000387,120]
[396489462,1764999375480,-500.0,0.000387,120]
[396489463,1764999375505,-500.0,0.000387,120]
[396489464,1764999375530,-500.0,0.000387,120]
[396489465,1764999375556,-500.0,0.000387,120]
[396489466,1764999375583,-500.0,0.000387,120]
[396489467,1764999375610,-500.0,0.000387,120]
[396489468,1764999375635,-500.0,0.000387,120]
[396489469,1764999375660,-500.0,0.000387,120]
[396489470,1764999375686,-500.0,0.000387,120]
[396489471,1764999375712,-500.0,0.000387,120]
[396489472,1764999375738,-500.0,0.000387,120]
[396489473,1764999375764,-500.0,0.000387,120]
[396489474,1764999375791,-500.0,0.000387,120]
[396489475,1764999375825,-500.0,0.000387,120]
[396489476,1764999375850,-500.0,0.000387,120]
[396489477,1764999375875,-500.0,0.000387,120]
[396489478,1764999375900,-500.0,0.000387,120]
[396489479,1764999375926,-500.0,0.000387,120]
[396489480,1764999375952,-150.0,0.00038748,120]
[396489481,1764999375980,-4463.8056,0.00038888,30]
[396489482,1764999376010,-18786.0,0.000389,30]
[396489483,1764999376034,-302.85995797,0.000389,120]
[396489484,1764999376063,-304106.98903756,0.000389,31]
[396489485,1764999376091,-151.0,0.00038904,66]
[396489486,1764999376119,-151.0,0.00038904,66]
[396489487,1764999376151,-151.0,0.00038904,66]
[396489488,1764999376180,-151.0,0.00038904,66]
[396489489,1764999376207,-151.0,0.00038904,66]
[396489490,1764999376235,-151.0,0.00038904,66]
[396489491,1764999376261,-151.0,0.00038904,66]
[396489492,1764999376288,-151.0,0.00038904,66]
[396489493,1764999376316,-151.0,0.00038904,66]
[396489494,1764999376345,-280.350355,0.00038904,66]
[396489495,1764999376372,-209.0,0.0003891,30]
[396489496,1764999376402,-50000.0,0.00039,39]
[396489497,1764999376429,-43346.57702457,0.00039,120]
[396489498,1764999376456,-1584.28367893,0.00039,120]
[396489499,1764999376482,-840.0,0.00039,30]
[396489500,1764999376508,-10000.0,0.00039,45]
[396489501,1764999376777,-5956.52,0.00039,30]
[396489502,1764999376805,-50000.0,0.00039,40]
[396489503,1764999376831,-1080.08,0.00039162,120]
[396489504,1764999376856,-500.0,0.00039178,120]
[396489505,1764999376882,-500.0,0.00039189,120]
[396489506,1764999376908,-500.0,0.000392,120]
[396489507,1764999376936,-500.0,0.00039212,120]
[396489508,1764999376963,-500.0,0.00039223,120]
[396489509,1764999376988,-500.0,0.00039232,30]
[396489510,1764999377016,-500.0,0.00039232,30]
[396489511,1764999377040,-500.0,0.00039232,30]
[396489512,1764999377065,-150.0,0.00039232,120]
[396489513,1764999377090,-500.0,0.00039234,120]
[396489514,1764999377115,-500.0,0.00039245,120]
[396489515,1764999377139,-500.0,0.00039256,120]
[396489516,1764999377165,-500.0,0.00039268,120]
[396489517,1764999377191,-500.0,0.00039279,120]
[396489518,1764999377217,-500.0,0.0003929,120]
[396489519,1764999377242,-500.0,0.00039301,120]
[396489520,1764999377268,-500.0,0.00039312,120]
[396489521,1764999377292,-500.0,0.00039323,120]
[396489522,1764999377317,-500.0,0.00039335,120]
[396489523,1764999377342,-500.0,0.00039346,120]
[396489524,1764999377367,-500.0,0.00039357,120]
[396489525,1764999377392,-500.0,0.00039368,120]
[396489526,1764999377417,-500.0,0.00039379,120]
[396489527,1764999377441,-500.0,0.00039391,120]
[396489528,1764999377467,-500.0,0.00039402,120]
[396489529,1764999377493,-500.0,0.00039413,120]
[396489530,1764999377518,-500.0,0.00039424,120]
[396489531,1764999377544,-500.0,0.00039435,120]
[396489532,1764999377572,-500.0,0.00039446,120]
[396489533,1764999377604,-730.0,0.00039452,120]
[396489534,1764999377632,-730.0,0.00039452,120]
[396489535,1764999377660,-730.0,0.00039452,120]
[396489536,1764999377686,-730.0,0.00039452,120]
[396489537,1764999377714,-730.0,0.00039452,120]
[396489538,1764999377740,-730.0,0.00039452,120]
[396489539,1764999377766,-730.0,0.00039452,120]
[396489540,1764999377791,-730.0,0.00039452,120]
[396489541,1764999377820,-730.0,0.00039452,120]
[396489542,1764999377846,-730.0,0.00039452,120]
[396489543,1764999377871,-730.0,0.00039452,120]
[396489544,1764999377896,-730.0,0.00039452,120]
[396489545,1764999377922,-730.0,0.00039452,120]
[396489546,1764999377946,-730.0,0.00039452,120]
[396489547,1764999377971,-730.0,0.00039452,120]
[396489548,1764999377998,-730.0,0.00039452,120]
[396489549,1764999378024,-730.0,0.00039452,120]
[396489550,1764999378051,-730.0,0.00039452,120]
[396489551,1764999378077,-730.0,0.00039452,120]
[396489552,1764999378102,-730.0,0.00039452,120]
[396489553,1764999378127,-730.0,0.00039452,120]
[396489554,1764999378152,-730.0,0.00039452,120]
[396489555,1764999378178,-730.0,0.00039452,120]
[396489556,1764999378206,-730.0,0.00039452,120]
[396489557,1764999378232,-730.0,0.00039452,120]
[396489558,1764999378257,-730.0,0.00039452,120]
[396489559,1764999378282,-730.0,0.00039452,120]
[396489560,1764999378307,-730.0,0.00039452,120]
[396489561,1764999378331,-730.0,0.00039452,120]
[396489562,1764999378357,-730.0,0.00039452,120]
[396489563,1764999378381,-730.0,0.00039452,120]
[396489564,1764999378406,-730.0,0.00039452,120]
[396489565,1764999378432,-730.0,0.00039452,120]
[396489566,1764999378459,-730.0,0.00039452,120]
[396489567,1764999378486,-730.0,0.00039452,120]
[396489568,1764999378510,-730.0,0.00039452,120]
[396489569,1764999378536,-730.0,0.00039452,120]
[396489570,1764999378560,-730.0,0.00039452,120]
[396489571,1764999378586,-730.0,0.00039452,120]
[396489572,1764999378612,-730.0,0.00039452,120]
[396489573,1764999378638,-730.0,0.00039452,120]
[396489574,1764999378664,-730.0,0.00039452,120]
[396489575,1764999378691,-730.0,0.00039452,120]
[396489576,1764999378717,-730.0,0.00039452,120]
[396489577,1764999378743,-730.0,0.00039452,120]
[396489578,1764999378770,-730.0,0.00039452,120]
[396489579,1764999378796,-730.0,0.00039452,120]
[396489580,1764999378825,-730.0,0.00039452,120]
[396489581,1764999378849,-730.0,0.00039452,120]
[396489582,1764999378875,-730.0,0.00039452,120]
[396489583,1764999378900,-730.0,0.00039452,120]
[396489584,1764999378924,-730.0,0.00039452,120]
[396489585,1764999378949,-730.0,0.00039452,120]
[396489586,1764999378974,-730.0,0.00039452,120]
[396489587,1764999379000,-730.0,0.00039452,120]
[396489588,1764999379026,-730.0,0.00039452,120]
[396489589,1764999379052,-730.0,0.00039452,120]
[396489590,1764999379078,-730.0,0.00039452,120]
[396489591,1764999379103,-730.0,0.00039452,120]
[396489592,1764999379129,-730.0,0.00039452,120]
[396489593,1764999379154,-730.0,0.00039452,120]
[396489594,1764999379180,-730.0,0.00039452,120]
[396489595,1764999379206,-730.0,0.00039452,120]
[396489596,1764999379234,-730.0,0.00039452,120]
[396489597,1764999379264,-730.0,0.00039452,120]
[396489598,1764999379290,-730.0,0.00039452,120]
[396489599,1764999379320,-730.0,0.00039452,120]
[396489600,1764999379349,-730.0,0.00039452,120]
[396489601,1764999379374,-730.0,0.00039452,120]
[396489602,1764999379400,-730.0,0.00039452,120]
[396489603,1764999379426,-677.0,0.00039452,120]
[396489604,1764999379641,-677.0,0.00039452,120]
[396489605,1764999379669,-677.0,0.00039452,120]
[396489606,1764999379694,-677.0,0.00039452,120]
[396489607,1764999379719,-677.0,0.00039452,120]
[396489608,1764999379744,-677.0,0.00039452,120]
[396489609,1764999379769,-677.0,0.00039452,120]
[396489610,1764999379794,-677.0,0.00039452,120]
[396489611,1764999379837,-677.0,0.00039452,120]
[396489612,1764999379872,-677.0,0.00039452,120]
[396489613,1764999379907,-677.0,0.00039452,120]
[396489614,1764999379944,-677.0,0.00039452,120]
[396489615,1764999379980,-677.0,0.00039452,120]
[396489616,1764999380014,-677.0,0.00039452,120]
[396489617,1764999380049,-677.0,0.00039452,120]
[396489618,1764999380084,-677.0,0.00039452,120]
[396489619,1764999380119,-677.0,0.00039452,120]
[396489620,1764999380155,-677.0,0.00039452,120]
[396489621,1764999380191,-677.0,0.00039452,120]
[396489622,1764999380226,-677.0,0.00039452,120]
[396489623,1764999380261,-677.0,0.00039452,120]
[396489624,1764999380298,-677.0,0.00039452,120]
[396489625,1764999380335,-677.0,0.00039452,120]
[396489626,1764999380369,-677.0,0.00039452,120]
[396489627,1764999380404,-677.0,0.00039452,120]
[396489628,1764999380439,-677.0,0.00039452,120]
[396489629,1764999380474,-667.0,0.00039452,120]
[396489630,1764999380508,-667.0,0.00039452,120]
[396489631,1764999380542,-667.0,0.00039452,120]
[396489632,1764999380581,-667.0,0.00039452,120]
[396489633,1764999380617,-667.0,0.00039452,120]
[396489634,1764999380653,-667.0,0.00039452,120]
[396489635,1764999380689,-667.0,0.00039452,120]
[396489636,1764999380724,-667.0,0.00039452,120]
[396489637,1764999380761,-667.0,0.00039452,120]
[396489638,1764999380800,-667.0,0.00039452,120]
[396489639,1764999380838,-667.0,0.00039452,120]
[396489640,1764999380891,-667.0,0.00039452,120]
[396489641,1764999380934,-667.0,0.00039452,120]
[396489642,1764999380971,-667.0,0.00039452,120]
[396489643,1764999381009,-667.0,0.00039452,120]
[396489644,1764999381045,-667.0,0.00039452,120]
[396489645,1764999381081,-669.0,0.00039452,120]
[396489646,1764999381118,-669.0,0.00039452,120]
[396489647,1764999381157,-669.0,0.00039452,120]
[396489648,1764999381195,-669.0,0.00039452,120]
[396489649,1764999381231,-669.0,0.00039452,120]
[396489650,1764999381266,-669.0,0.00039452,120]
[396489651,1764999381302,-669.0,0.00039452,120]
[396489652,1764999381337,-669.0,0.00039452,120]
[396489653,1764999381373,-669.0,0.00039452,120]
[396489654,1764999381409,-669.0,0.00039452,120]
[396489655,1764999381444,-669.0,0.00039452,120]
[396489656,1764999381488,-669.0,0.00039452,120]
[396489657,1764999381528,-669.0,0.00039452,120]
[396489658,1764999381565,-669.0,0.00039452,120]
[396489659,1764999381605,-669.0,0.00039452,120]
[396489660,1764999381645,-669.0,0.00039452,120]
[396489661,1764999381684,-669.0,0.00039452,120]
[396489662,1764999381723,-669.0,0.00039452,120]
[396489663,1764999381762,-669.0,0.00039452,120]
[396489664,1764999381802,-669.0,0.00039452,120]
[396489665,1764999381844,-669.0,0.00039452,120]
[396489666,1764999381883,-669.0,0.00039452,120]
[396489667,1764999381923,-669.0,0.00039452,120]
[396489668,1764999381960,-669.0,0.00039452,120]
[396489669,1764999382000,-669.0,0.00039452,120]
[396489670,1764999382041,-669.0,0.00039452,120]
[396489671,1764999382085,-669.0,0.00039452,120]
[396489672,1764999382124,-669.0,0.00039452,120]
[396489673,1764999382165,-669.0,0.00039452,120]
[396489674,1764999382204,-669.0,0.00039452,120]
[396489675,1764999382243,-669.0,0.00039452,120]
[396489676,1764999382281,-669.0,0.00039452,120]
[396489677,1764999382318,-500.0,0.00039458,120]
[396489678,1764999382355,-500.0,0.00039469,120]
[396489679,1764999382392,-500.0,0.0003948,120]
[396489680,1764999382428,-500.0,0.00039491,120]
[396489681,1764999382464,-2999.999999,0.000395,60]
[396489682,1764999382500,-500.0,0.00039502,120]
[396489683,1764999382536,-500.0,0.00039506,30]
[396489684,1764999382573,-500.0,0.00039506,30]
[396489685,1764999382610,-500.0,0.00039514,120]
[396489686,1764999382647,-500.0,0.00039525,120]
[396489687,1764999382686,-500.0,0.00039536,120]
[396489688,1764999382724,-500.0,0.00039547,120]
[396489689,1764999382763,-500.0,0.00039558,120]
[396489690,1764999382802,-500.0,0.00039569,120]
[396489691,1764999382843,-500.0,0.00039581,120]
[396489692,1764999382882,-500.0,0.00039592,120]
[396489693,1764999382917,-500.0,0.000396,120]
[396489694,1764999382953,-504.39,0.000396,120]
[396489695,1764999382991,-927.171447,0.000396,120]
[396489696,1764999383029,-500.0,0.00039603,120]
[396489697,1764999383066,-500.0,0.00039614,120]
[396489698,1764999383104,-500.0,0.00039625,120]
[396489699,1764999383141,-500.0,0.00039637,120]
[396489700,1764999383179,-500.0,0.00039648,120]
[396489701,1764999383217,-500.0,0.00039659,120]
[396489702,1764999383256,-500.0,0.0003967,120]
[396489703,1764999383296,-500.0,0.00039681,120]
[396489704,1764999383335,-500.0,0.00039692,120]
[396489705,1764999383372,-500.0,0.00039704,120]
[396489706,1764999383410,-500.0,0.00039715,120]
[396489707,1764999383726,-734.26412194,0.00039726,120]
[396489708,1764999383764,-500.0,0.0003978,30]
[396489709,1764999383804,-500.0,0.0003978,30]
[396489710,1764999383841,-503.07,0.000398,90]
[396489711,1764999383877,-1565.53085964,0.000398,120]
[396489712,1764999383914,-25109.83323403,0.0003988,120]
[396489713,1764999383952,-190.21305264,0.000399,120]
[396489714,1764999383989,-190.21305263,0.000399,120]
[396489715,1764999384026,-190.21305263,0.000399,120]
[396489716,1764999384061,-3000.0,0.00039998,31]
[396489717,1764999384099,-50000.0,0.0004,40]
[396489718,1764999384134,-1045.0,0.0004,120]
[396489719,1764999384173,-1093.46042176,0.0004,120]
[396489720,1764999384210,-173.5,0.0004,120]
[396489721,1764999384247,-1499.54970647,0.0004,120]
[396489722,1764999384284,-43694.10298424,0.0004,60]
[396489723,1764999384321,-1288.96495283,0.0004,120]
[396489724,1764999384358,-552.0,0.0004,120]
[396489725,1764999384396,-547.93328273,0.0004,120]
[396489726,1764999384433,-2727.54028581,0.0004,30]
[396489727,1764999384471,-200.0,0.0004,120]
[396489728,1764999384509,-168.71768795,0.0004,120]
[396489729,1764999384548,-184.81360122,0.0004,30]
[396489730,1764999384588,-150.98825238,0.0004,120]
[396489731,1764999384626,-161.44775489,0.0004,30]
[396489732,1764999384664,-166.09993465,0.0004,30]
[396489733,1764999384701,-1396.0,0.0004,120]
[396489734,1764999384741,-160.0,0.0004,30]
[396489735,1764999384779,-2000.0,0.0004,60]
[396489736,1764999384817,-550.34475196,0.0004,120]
[396489737,1764999384854,-228.6617563,0.0004,120]
[396489738,1764999384891,-168.0,0.0004,30]
[396489739,1764999384927,-5000.0,0.0004,120]
[396489740,1764999384963,-506.0,0.0004,30]
[396489741,1764999384998,-2042.881336,0.0004,120]
[396489742,1764999385035,-150.50651165,0.0004,120]
[396489743,1764999385071,-500.0,0.0004,30]
[396489744,1764999385108,-200.0,0.0004,120]
[396489745,1764999385145,-10000.0,0.0004,30]
[396489746,1764999385182,-10000.0,0.0004,120]
[396489747,1764999385219,-380.24374604,0.0004,120]
[396489748,1764999385255,-1016.90460314,0.0004,30]
[396489749,1764999385293,-234.75485978,0.0004,120]
[396489750,1764999385335,-364.84076133,0.0004,120]
[396489751,1764999385371,-172.33296575,0.0004,120]
[396489752,1764999385408,-419.0,0.0004,120]
[396489753,1764999385446,-1997.69551676,0.0004,120]
[396489754,1764999385481,-480.30253659,0.0004,30]
[396489755,1764999385518,-1138.95,0.0004,120]
[396489756,1764999385555,-231.42,0.0004,120]
[396489757,1764999385590,-1265.93,0.0004,120]
[396489758,1764999385627,-437.1,0.0004,120]
[396489759,1764999385665,-2236.72,0.0004,120]
[396489760,1764999385702,-411.36,0.0004,120]
[396489761,1764999385739,-215.62,0.0004,120]
[396489762,1764999385776,-564.45,0.0004,120]
[396489763,1764999385815,-625.64,0.0004,120]